bitfinex/quotes_SOLUSD_20220228
["timestamp","ask_amount","ask_price","bid_price","bid_amount"]
[1646087576117,24.03178035,98.921,98.79,22.01070518]
[1646087576320,1.8108532,98.92,98.79,16.79748976]
[1646087576618,3.237,98.881,98.83,10.07985113]
[1646087576916,5.27863551,98.926,98.83,10.07985113]
[1646087577117,5.27863551,98.926,98.814,25.52774251]
[1646087577316,3.239,98.926,98.8,2.74678921]
[1646087577518,5.82993768,98.925,98.792,2.44144706]
[1646087577917,71.0266,99.027,98.8,15.57436309]
[1646087578123,1.91523517,99.026,98.84,12.18503731]
[1646087578321,1.91523517,99.026,98.801,2.20158669]
[1646087578622,1.65852084,98.97,98.841,19.37621368]
[1646087578820,5.6038196,99.025,98.841,19.37621368]
[1646087579018,4.048,98.921,98.817,24.7846407]
[1646087579219,18.83382275,99.047,98.842,24.7846407]
[1646087579421,1.50263775,99.046,98.842,24.7846407]
[1646087579622,7.23759311,99.067,98.843,17.90763279]
[1646087579819,7.23759311,99.081,98.843,40.9305023]
[1646087580224,7.23759311,99.081,98.845,2.48889678]
[1646087580420,7.23759311,99.081,98.85,3.1]
[1646087580636,7.23759311,99.081,98.92,5.0]
[1646087580823,10.90461586,99.096,98.92,5.0]
[1646087581123,4.20366044,99.085,98.918,30.17034907]
[1646087581426,6.70095542,99.119,98.921,30.17034907]
[1646087581621,15.1268,99.127,98.921,30.17034907]
[1646087581820,15.1268,99.127,98.94,2.56]
[1646087582021,38.5272,99.126,98.922,89.94566048]
[1646087582222,38.5272,99.126,98.941,66.73627261]
[1646087582425,38.5272,99.126,98.95,5.0]
[1646087582828,38.5272,99.126,98.951,29.84417932]
[1646087583023,38.5272,99.126,98.952,2.41203574]
[1646087583425,23.75157805,99.125,98.953,33.84417932]
[1646087583821,38.5272,99.126,98.953,33.84417932]
[1646087583822,38.5272,99.126,98.954,2.77317036]
[1646087584222,38.5272,99.126,98.955,34.97110529]
[1646087584421,38.5272,99.126,98.956,2.67838952]
[1646087584622,38.5272,99.126,98.956,5.42517873]
[1646087584820,38.5272,99.126,98.957,26.86777195]
[1646087585021,38.5272,99.126,98.958,2.2602836]
[1646087585322,38.5272,99.126,98.959,17.67181575]
[1646087585519,38.5272,99.126,98.96,2.57939872]
[1646087585721,37.516,99.126,98.96,2.57939872]
[1646087585925,37.516,99.126,98.961,25.90569379]
[1646087586122,6.13914384,99.126,98.959,69.5604]
[1646087586323,13.60311284,99.165,98.96,3.03788155]
[1646087586522,13.60311284,99.165,98.962,2.74678921]
[1646087586723,17.21139284,99.163,98.97,10.86696266]
[1646087586923,0.50664136,99.17,98.97,10.86696266]
[1646087587325,0.50664136,99.17,98.971,27.09707066]
[1646087587524,20.4274,99.131,98.972,3.1056507]
[1646087587725,18.3936,99.131,98.971,34.84144648]
[1646087587936,15.9136,99.131,98.972,2.62894481]
[1646087588128,12.83305928,99.164,98.973,2.74678921]
[1646087588327,12.83305928,99.164,98.974,23.1663]
[1646087588531,12.72750474,99.164,98.974,54.7010906]
[1646087588730,2.08700474,99.164,98.975,30.19757776]
[1646087588929,0.50664136,99.17,98.98,5.0]
[1646087589130,0.50664136,99.17,99.0,5.0]
[1646087589333,14.00634463,99.17,99.006,7.0]
[1646087589526,14.00634463,99.17,99.02,2.09]
[1646087589727,0.50664136,99.17,99.02,2.09]
[1646087589928,0.50664136,99.17,99.02,17.2602]
[1646087590227,0.50664136,99.17,99.032,63.81]
[1646087590427,5.26805553,99.248,99.05,5.0]
[1646087590728,5.553e-05,99.248,99.08,5.0]
[1646087590926,3.12,99.378,99.08,5.0]
[1646087590927,1.78111251,99.376,99.082,2.66511706]
[1646087591130,21.07372605,99.327,99.082,2.66511706]
[1646087591327,1.48205872,99.326,99.12,5.0]
[1646087591529,8.65624094,99.352,99.083,105.14642076]
[1646087591730,1.82648732,99.326,99.121,50.105177]
[1646087591928,1.82648732,99.326,99.122,72.0439]
[1646087592132,187.9832,99.377,99.123,2.72108596]
[1646087592429,1.76682176,99.376,99.124,24.9026]
[1646087592630,1.76682176,99.376,99.165,0.31979822]
[1646087592830,1.63877468,99.401,99.165,0.31979822]
[1646087593031,1.85629216,99.43,99.22,5.0]
[1646087593232,0.85629216,99.43,99.22,5.0]
[1646087593431,0.85629216,99.43,99.24,5.0]
[1646087593634,0.85629216,99.43,99.221,48.78581302]
[1646087593831,0.85629216,99.43,99.241,31.29115875]
[1646087594032,2.74678921,99.429,99.241,31.29115875]
[1646087594233,12.25799312,99.429,99.242,31.95849208]
[1646087594435,13.47132645,99.428,99.242,74.68412019]
[1646087594734,21.06115357,99.431,99.243,108.26097069]
[1646087594933,21.06115357,99.431,99.243,71.54793099]
[1646087595134,21.06115357,99.431,99.244,73.97326693]
[1646087595438,13.13263312,99.444,99.245,59.18268907]
[1646087595640,13.13263312,99.444,99.26,5.0]
[1646087595836,17.11929979,99.435,99.28,5.0]
[1646087596039,99.0816,99.577,99.27,5.0]
[1646087596237,0.00498794,99.494,99.271,72.5817]
[1646087596436,16.12428773,99.505,99.281,75.29442495]
[1646087596737,5.25016245,99.506,99.282,47.05780458]
[1646087596938,5.25016245,99.506,99.283,2.95708135]
[1646087597139,5.25016245,99.506,99.283,29.52514606]
[1646087597336,5.25016245,99.506,99.284,43.77870259]
[1646087597538,5.25016245,99.506,99.284,73.67973384]
[1646087597738,5.25016245,99.506,99.285,43.12163773]
[1646087597937,12.37292375,99.505,99.286,47.7507]
[1646087598139,12.37292375,99.505,99.287,2.98551088]
[1646087598337,5.25016245,99.506,99.287,2.98551088]
[1646087598538,14.95360981,99.505,99.287,55.42324321]
[1646087598739,14.95360981,99.505,99.288,49.71991393]
[1646087598936,19.97106541,99.504,99.289,2.31926278]
[1646087599140,13.67292375,99.505,99.289,2.31926278]
[1646087599440,5.25016245,99.506,99.34,5.0]
[1646087599844,5.25016245,99.506,99.341,26.62718255]
[1646087600239,5.25016245,99.506,99.342,2.57400772]
[1646087600639,5.25016245,99.506,99.342,32.91785268]
[1646087600842,5.25016245,99.506,99.341,4.022]
[1646087601041,5.25016245,99.506,99.343,25.45971693]
[1646087601243,6.0,99.511,99.344,2.47881446]
[1646087601541,6.0,99.511,99.36,5.0]
[1646087601941,6.0,99.511,99.37,5.0]
[1646087603042,6.0,99.511,99.38,5.0]
[1646087603239,6.0,99.511,99.371,4.022]
[1646087603440,99.0816,99.577,99.38,5.0]
[1646087603642,166.2201,99.664,99.4,5.0]
[1646087603845,18.52822136,99.585,99.401,150.3253]
[1646087604047,18.52822136,99.585,99.402,46.3317664]
[1646087604243,18.52822136,99.585,99.402,44.030788]
[1646087604445,18.52822136,99.585,99.403,2.994069]
[1646087604643,18.52822136,99.585,99.42,5.0]
[1646087604845,18.52822136,99.585,99.401,87.1971]
[1646087605144,20.52918839,99.589,99.402,2.39687644]
[1646087605345,19.95763993,99.584,99.402,2.39687644]
[1646087605947,19.95763993,99.584,99.402,6.41587644]
[1646087606544,6.0,99.59,99.402,6.41587644]
[1646087606744,6.0,99.59,99.402,2.39687644]
[1646087607444,22.91358133,99.59,99.402,2.39687644]
[1646087607844,6.0,99.59,99.402,2.39687644]
[1646087609051,19.752426,99.589,99.402,2.39687644]
[1646087609450,6.0,99.59,99.402,2.39687644]
[1646087610250,6.0,99.59,99.403,4.019]
[1646087611255,15.0412,99.627,99.403,4.019]
[1646087611555,23.21848305,99.63,99.402,2.39687644]
[1646087611954,21.00581454,99.626,99.402,2.39687644]
[1646087612350,31.00441088,99.626,99.402,2.39687644]
[1646087612553,13.64324557,99.625,99.41,5.0]
[1646087612750,13.64324557,99.625,99.42,5.0]
[1646087612951,13.64324557,99.625,99.403,4.019]
[1646087613150,13.65819325,99.624,99.403,4.019]
[1646087613551,23.64149525,99.623,99.403,4.019]
[1646087613977,37.2996885,99.623,99.403,4.019]
[1646087614179,37.2996885,99.623,99.403,0.424342]
[1646087614379,23.64149525,99.622,99.403,0.424342]
[1646087614978,37.2996885,99.622,99.403,0.424342]
[1646087615280,23.64149525,99.621,99.41,5.0]
[1646087615482,23.64149525,99.621,99.42,5.0]
[1646087615678,23.64149525,99.621,99.421,104.2592]
[1646087615883,21.00581454,99.626,99.46,5.0]
[1646087617483,21.00581454,99.626,99.46,20.0416]
[1646087617681,21.00581454,99.626,99.47,5.0]
[1646087617884,21.00581454,99.626,99.48,5.0]
[1646087618281,22.5274,99.664,99.481,25.60559741]
[1646087618492,20.98753742,99.645,99.49,5.0]
[1646087618682,24.2132,99.73,99.49,8.9331]
[1646087618884,24.2132,99.73,99.51,5.0]
[1646087619086,20.98552396,99.687,99.511,48.6102]
[1646087619288,3.591,99.728,99.511,71.3807122]
[1646087619588,24.2132,99.73,99.512,28.15537722]
[1646087619782,24.2132,99.73,99.512,25.51730141]
[1646087619982,3.599,99.728,99.513,2.57962938]
[1646087620186,3.599,99.728,99.533,3.9314]
[1646087620383,3.599,99.728,99.513,2.57962938]
[1646087620584,3.599,99.728,99.514,84.76113921]
[1646087620784,3.599,99.728,99.515,2.8519595]
[1646087620984,17.08711584,99.727,99.515,20.14899285]
[1646087621185,3.599,99.728,99.516,26.58928921]
[1646087621382,4.04831307,99.738,99.516,41.13953335]
[1646087621584,4.04831307,99.738,99.517,2.8030968]
[1646087621785,4.04831307,99.738,99.517,5.54988601]
[1646087621987,4.04831307,99.738,99.518,2.74678921]
[1646087622192,3.607,99.736,99.518,2.74678921]
[1646087622392,3.607,99.736,99.56,5.0]
[1646087622587,4.05631307,99.738,99.54,5.0]
[1646087622787,4.05631307,99.738,99.542,2.79676448]
[1646087622989,0.44531307,99.738,99.542,2.79676448]
[1646087623185,0.44531307,99.738,99.543,2.74678921]
[1646087623389,0.44531307,99.738,99.56,5.0]
[1646087623588,0.44531307,99.738,99.561,69.9696]
[1646087623786,0.44531307,99.738,99.57,5.0]
[1646087623989,3.626,99.737,99.57,5.0]
[1646087624388,3.626,99.737,99.58,5.0]
[1646087624593,0.44531307,99.738,99.58,5.0]
[1646087624788,0.44531307,99.738,99.582,2.72694068]
[1646087624992,3.636,99.732,99.582,2.72694068]
[1646087625589,3.637,99.727,99.59,5.0]
[1646087625989,0.44531307,99.738,99.59,5.0]
[1646087626391,0.44531307,99.738,99.6,5.44]
[1646087626588,3.638,99.737,99.6,5.44]
[1646087626789,3.638,99.737,99.601,2.74678921]
[1646087627391,0.44531307,99.738,99.601,2.74678921]
[1646087627591,0.44531307,99.738,99.602,46.8099]
[1646087627993,0.44531307,99.738,99.603,5.28739563]
[1646087628491,0.44531307,99.738,99.604,0.24678921]
[1646087628692,0.44531307,99.738,99.62,0.45]
[1646087629296,0.44531307,99.738,99.621,2.74678921]
[1646087632301,0.05,99.8,99.653,47.5944]
[1646087632498,0.05,99.8,99.654,3.92662]
[1646087632720,0.05,99.8,99.7,5.0]
[1646087632998,0.05,99.8,99.67,5.0]
[1646087633197,0.05,99.8,99.71,5.0]
[1646087633398,4.022e-05,99.82,99.75,5.0]
[1646087633598,0.00014022,99.837,99.73,5.0]
[1646087633802,14.7895,99.895,99.732,3.92355]
[1646087634100,14.9111,99.983,99.732,2.76666295]
[1646087634298,14.9111,99.983,99.734,3.92347]
[1646087634907,163.4988,100.0,99.76,5.0]
[1646087635104,163.4988,100.0,99.77,5.0]
[1646087635304,15.2366,99.994,99.82,5.0]
[1646087635501,226.7772,99.943,99.821,3.92006]
[1646087635703,202.0809,99.943,99.821,3.92006]
[1646087635900,1.5148,99.943,99.821,2.74678921]
[1646087636303,163.4988,100.0,99.86,5.0]
[1646087636909,163.4988,100.0,99.861,2.74678921]
[1646087637104,163.4988,100.0,99.862,3.91845]
[1646087637304,163.4988,100.0,99.861,2.74678921]
[1646087637508,163.4988,100.0,99.863,2.74678921]
[1646087637804,163.4988,100.0,99.864,3.91837]
[1646087638205,163.4988,100.0,99.91,5.0]
[1646087638403,163.4988,100.0,99.912,3.91648]
[1646087638605,163.4988,100.0,99.911,2.74678921]
[1646087639008,163.4988,100.0,99.913,2.74678921]
[1646087639405,161.9388,100.0,99.913,2.74678921]
[1646087639608,161.9388,100.0,99.914,3.91641]
[1646087640123,161.9388,100.0,99.915,2.74678921]
[1646087640308,161.9388,100.0,99.915,6.74778921]
[1646087640507,161.9388,100.0,99.92,5.0]
[1646087640710,152.3088,100.0,99.92,5.0]
[1646087641108,152.3088,100.0,99.921,2.74678921]
[1646087641409,152.3088,100.0,99.921,6.74778921]
[1646087641808,152.3088,100.0,99.922,2.74678921]
[1646087642208,152.3088,100.0,99.924,3.91601]
[1646087642407,152.3088,100.0,99.94,5.0]
[1646087643110,15.048,100.06,99.941,2.74678921]
[1646087643308,14.548,100.06,99.95,1.405702]
[1646087643708,14.548,100.06,99.951,2.74678921]
[1646087644711,0.1,100.09,99.951,2.74678921]
[1646087645113,0.1,100.09,99.952,3.999]
[1646087645511,15.3697,100.09,99.953,2.74678921]
[1646087645712,15.3697,100.09,99.953,5.04001465]
[1646087646112,2.50494413,100.08,99.953,2.29322544]
[1646087646715,15.1529,100.09,99.953,2.29322544]
[1646087646916,0.1,100.09,99.951,2.41150862]
[1646087647113,0.1,100.09,99.95,14.7223]
[1646087647315,0.1,100.09,99.953,3.91488]
[1646087647741,0.1,100.09,99.955,3.9148]
[1646087648333,0.1,100.09,99.955,6.87240018]
[1646087648737,16.9561953,100.28,99.955,6.87240018]
[1646087649235,16.9561953,100.28,99.956,19.59806124]
[1646087649436,1.99,100.22,99.972,3.91413]
[1646087649836,2.74678921,100.21,99.973,2.74678921]
[1646087650037,108.3127,100.27,99.98,23.5501]
[1646087650241,11.47828948,100.24,99.982,3.91374]
[1646087650538,11.47828948,100.26,100.0,5.0]
[1646087650739,11.47828948,100.26,100.02,3.91226]
[1646087650938,108.3127,100.27,100.03,73.1237]
[1646087651137,2.50494413,100.26,100.04,3.91147]
[1646087651540,108.3127,100.27,100.04,3.91147]
[1646087652237,110.81764413,100.27,100.04,3.91147]
[1646087652440,2.50494413,100.27,100.04,6.65825921]
[1646087652641,15.10957961,100.27,100.05,14.40996858]
[1646087652842,2.50494413,100.27,100.05,3.91108]
[1646087653038,2.50494413,100.27,100.06,24.7192]
[1646087653237,23.37165395,100.27,100.06,27.82385419]
[1646087653437,75.8369,100.26,100.07,14.30830858]
[1646087653838,75.8369,100.26,100.06,31.81685419]
[1646087654239,2.0996,100.3,100.08,0.31908359]
[1646087654438,0.1096,100.3,100.12,0.30756791]
[1646087654741,66.69413772,100.31,100.3,0.00165]
[1646087654948,69.72611049,100.31,100.3,0.00165]
[1646087655341,69.72611049,100.31,100.12,26.58370122]
[1646087655540,69.72611049,100.31,100.15,5.0]
[1646087655740,69.72611049,100.31,100.13,19.43534239]
[1646087655940,69.72611049,100.31,100.19,5.0]
[1646087656140,69.72611049,100.31,100.16,23.35287573]
[1646087656339,69.72611049,100.31,100.2,33.63587256]
[1646087656541,69.72611049,100.31,100.22,5.0]
[1646087656745,69.72611049,100.31,100.21,34.5892059]
[1646087656941,69.72611049,100.31,100.23,31.84241669]
[1646087656942,69.22611049,100.31,100.23,31.84241669]
[1646087657246,66.19413772,100.31,100.23,46.84332442]
[1646087657442,66.19413772,100.31,100.23,34.5892059]
[1646087657646,66.19413772,100.31,100.24,28.08602335]
[1646087658040,52.59413772,100.31,100.24,28.08602335]
[1646087658241,45.39413772,100.31,100.25,2.74678921]
[1646087658441,45.39413772,100.31,100.24,28.08602335]
[1646087658649,45.39413772,100.31,100.26,28.31601027]
[1646087658845,45.39413772,100.31,100.26,24.41312027]
[1646087659046,45.39413772,100.31,100.27,23.75444493]
[1646087659445,45.39413772,100.31,100.27,0.00444493]
[1646087659642,45.39413772,100.31,100.23,33.08185612]
[1646087659844,45.39413772,100.31,100.23,11.93462185]
[1646087660043,45.39413772,100.31,100.2,3.989]
[1646087660551,43.89413772,100.31,100.2,25.79444801]
[1646087660743,5.0,100.3,100.2,2.98386255]
[1646087660944,5.0,100.3,100.17,12.28995518]
[1646087661145,5.0,100.3,100.16,1.19102756]
[1646087661344,5.0,100.3,100.16,26.33759948]
[1646087661544,5.0,100.3,100.16,6.19102756]
[1646087661749,5.0,100.3,100.09,5.0]
[1646087661945,5.0,100.3,100.17,0.00924402]
[1646087662145,14.26862029,100.29,100.15,5.0]
[1646087662345,16.77356442,100.29,100.09,5.0]
[1646087662547,120.9169,100.3,100.07,5.0]
[1646087662744,200.0345,100.3,100.07,5.0]
[1646087662945,1.50494413,100.28,100.05,5.0]
[1646087663248,1.50494413,100.28,100.04,2.65801636]
[1646087663445,1.50494413,100.28,100.07,20.11209925]
[1646087663645,1.50494413,100.28,100.07,2.96508934]
[1646087663847,3.97149,100.27,100.04,0.65]
[1646087664048,3.97149,100.27,100.07,2.74678921]
[1646087664246,13.09018658,100.26,100.05,31.10824827]
[1646087664449,14.8898,100.28,100.06,0.65]
[1646087664645,276.1094,100.3,100.08,30.29065725]
[1646087664848,8.57,100.3,100.1,0.66]
[1646087665047,3.57,100.29,100.12,0.66]
[1646087665247,5.0,100.3,100.13,0.66]
[1646087665447,5.0,100.3,100.13,26.51598646]
[1646087665650,5.0,100.3,100.13,141.52490967]
[1646087665853,8.595017,100.3,100.14,36.7877076]
[1646087666050,8.595017,100.3,100.14,3.03042031]
[1646087666246,3.595017,100.3,100.12,15.93172114]
[1646087666446,3.595017,100.3,100.12,45.40922692]
[1646087666850,39.39908185,100.31,100.12,2.5353726]
[1646087667047,14.58233625,100.3,100.11,3.06772742]
[1646087667348,1.50494413,100.3,100.08,32.69615801]
[1646087667548,120.00234413,100.3,100.09,23.54932576]
[1646087667747,118.4974,100.3,100.09,26.65056517]
[1646087667947,118.4974,100.3,100.09,3.10123941]
[1646087668147,1.50494413,100.29,100.08,27.42376022]
[1646087668355,1.50494413,100.29,100.1,49.15385608]
[1646087668548,193.5861,100.3,100.1,22.65786365]
[1646087668747,197.5251,100.3,100.1,2.45861112]
[1646087668948,197.5251,100.3,100.09,2.96253155]
[1646087669152,208.29399855,100.3,100.08,27.36917008]
[1646087669348,1.50494413,100.29,100.08,27.36917008]
[1646087669750,12.24223188,100.28,100.08,2.74167008]
[1646087670148,12.24223188,100.28,100.04,53.89714963]
[1646087670348,1.50494413,100.27,100.04,53.89714963]
[1646087670549,1.50494413,100.27,100.07,23.36243028]
[1646087670750,13.07065214,100.27,100.07,2.62393644]
[1646087670951,3.57,100.26,100.05,2.74678921]
[1646087671150,15.13570801,100.26,100.07,24.65629013]
[1646087671350,11.56570801,100.26,100.07,22.15629013]
[1646087671551,11.56570801,100.25,100.07,2.56690675]
[1646087671752,13.07065214,100.25,100.06,3.01767974]
[1646087671952,32.22278673,100.25,100.05,2.42732908]
[1646087672149,32.22278673,100.25,99.99,2.89]
[1646087672150,99.02361169,100.24,99.99,2.89]
[1646087672349,59.51809292,100.24,99.98,5.0]
[1646087672651,70.80260105,100.23,99.95,2.74678921]
[1646087672851,118.3727,100.22,99.95,2.74678921]
[1646087673049,2.98,100.21,99.95,2.74678921]
[1646087673252,105.33675018,100.21,99.95,2.74678921]
[1646087673452,27.23261158,100.2,99.95,2.74678921]
[1646087673649,61.83492692,100.2,99.95,2.74678921]
[1646087673850,41.3739338,100.19,99.95,2.74678921]
[1646087674049,61.22120779,100.19,99.95,2.74678921]
[1646087674250,41.72455388,100.18,99.917,2.74678921]
[1646087674453,41.72455388,100.18,99.917,0.24678921]
[1646087674454,5.0,100.17,99.917,0.24678921]
[1646087674752,39.2680051,100.17,99.918,2.74678921]
[1646087674950,60.2784966,100.16,100.05,32.2]
[1646087675151,60.8046947,100.16,100.05,2.28805328]
[1646087675350,63.41582994,100.15,99.916,2.80390404]
[1646087675551,64.92077407,100.15,99.916,2.80390404]
[1646087675752,2.98,100.13,99.916,2.80390404]
[1646087675955,112.084,100.13,99.916,2.80390404]
[1646087676150,2.98,100.11,99.916,2.30390404]
[1646087676350,2.98,100.1,99.916,2.30390404]
[1646087676558,72.80521109,100.1,99.916,2.30390404]
[1646087676851,68.5707768,100.09,99.916,2.30390404]
[1646087677055,52.05033001,100.09,99.916,2.30390404]
[1646087677353,28.13272738,100.08,99.916,2.30390404]
[1646087677653,62.61496661,100.08,99.916,2.30390404]
[1646087677853,35.33272244,100.07,99.916,2.30390404]
[1646087678054,38.07951165,100.07,99.916,2.30390404]
[1646087678256,39.58672244,100.06,99.916,2.30390404]
[1646087678459,2.98,100.04,99.916,2.30390404]
[1646087678654,23.92367626,100.05,99.916,2.30390404]
[1646087678855,23.92367626,100.04,99.916,2.30390404]
[1646087679057,50.34205904,100.04,99.971,32.2]
[1646087679256,2.74678921,100.05,99.971,32.2]
[1646087679457,29.93055445,100.03,99.972,2.25849546]
[1646087679654,32.91055445,100.03,99.916,2.71337294]
[1646087679855,2.74678921,99.971,99.781,2.09334575]
[1646087680057,5.22495916,99.843,99.723,5.22549649]
[1646087680456,5.22495916,99.843,99.67,0.82]
[1646087680657,5.22495916,99.843,99.687,10.46762747]
[1646087680856,5.22495916,99.843,99.687,10.44762747]
[1646087681059,5.22495916,99.843,99.7,0.84]
[1646087681256,5.22495916,99.843,99.687,10.44762747]
[1646087681257,5.22495916,99.843,99.688,2.74678921]
[1646087681481,5.22495916,99.843,99.701,2.74678921]
[1646087681655,5.22495916,99.843,99.687,10.44762747]
[1646087681855,5.22495916,99.843,99.689,2.74678921]
[1646087682256,5.22495916,99.843,99.687,10.44762747]
[1646087682557,5.22495916,99.843,99.659,2.06177436]
[1646087682756,5.22495916,99.843,99.675,10.47132846]
[1646087683157,5.22495916,99.843,99.66,2.74678921]
[1646087683358,5.22495916,99.843,99.653,2.03759304]
[1646087683359,5.22495916,99.843,99.68,0.91]
[1646087683757,5.22495916,99.843,99.681,2.74678921]
[1646087684361,5.22495916,99.843,99.682,4.009]
[1646087684762,5.22495916,99.843,99.683,2.74678921]
[1646087684968,5.22495916,99.843,99.679,2.31513758]
[1646087685165,5.22495916,99.843,99.672,2.4257894]
[1646087685463,5.22495916,99.843,99.681,2.74678921]
[1646087685663,0.05488222,99.864,99.68,10.46945821]
[1646087685865,0.05488222,99.864,99.683,4.009]
[1646087686263,20.56096121,99.863,99.673,4.35152054]
[1646087686464,1.900619,99.862,99.683,2.74678921]
[1646087686664,2.98,99.859,99.673,4.35152054]
[1646087686866,35.47456857,99.861,99.673,4.35152054]
[1646087687063,21.13584343,99.858,99.673,4.35152054]
[1646087687265,1.78947218,99.857,99.673,4.35152054]
[1646087687468,39.34106996,99.857,99.674,2.74678921]
[1646087687665,21.08096121,99.856,99.673,4.35152054]
[1646087687865,2.35912398,99.855,99.673,4.35152054]
[1646087688266,21.08096121,99.854,99.673,4.35152054]
[1646087688466,1.73128165,99.853,99.673,4.35152054]
[1646087688668,15.45512901,99.853,99.673,4.35152054]
[1646087688865,1.97412563,99.852,99.674,2.74678921]
[1646087689167,2.98,99.849,99.673,0.00152054]
[1646087689371,2.98,99.839,99.639,0.00678921]
[1646087689566,2.98,99.819,99.631,4.009]
[1646087689765,2.98,99.759,99.631,4.009]
[1646087689966,2.98,99.749,99.654,0.009]
[1646087690166,2.74678921,99.758,99.654,0.009]
[1646087690370,2.74678921,99.758,99.611,4.009]
[1646087690371,40.2452508,99.748,99.611,4.009]
[1646087690567,2.98,99.739,99.624,0.00169313]
[1646087690769,2.98,99.739,99.482,2.53707735]
[1646087690967,45.24537335,99.738,99.491,10.48950811]
[1646087691172,2.37623875,99.737,99.491,10.48950811]
[1646087691367,58.72978872,99.737,99.491,10.48950811]
[1646087691570,62.80867489,99.736,99.491,10.48950811]
[1646087691769,2.98,99.729,99.491,10.48950811]
[1646087691970,2.98,99.719,99.482,2.53707735]
[1646087692173,64.01001405,99.728,99.492,2.74678921]
[1646087692369,1.82283194,99.727,99.654,0.009]
[1646087692568,8.36364681,99.718,99.654,0.009]
[1646087692868,2.98,99.719,99.654,0.009]
[1646087693068,8.7757308,99.717,99.654,0.009]
[1646087693367,2.22819221,99.716,99.491,10.49240043]
[1646087693772,1.99806198,99.726,99.492,2.74678921]
[1646087694171,1.99806198,99.726,99.5,0.94]
[1646087694370,1.99806198,99.726,99.53,0.94]
[1646087694970,1.99806198,99.726,99.531,2.74678921]
[1646087695182,1.99806198,99.726,99.518,2.74678921]
[1646087695569,1.99806198,99.726,99.521,2.74678921]
[1646087695771,1.99806198,99.726,99.53,0.94]
[1646087696169,1.99806198,99.726,99.529,14.25334082]
[1646087696381,1.99806198,99.726,99.56,0.94]
[1646087696771,4.014,99.758,99.561,2.74678921]
[1646087697171,19.63134854,99.785,99.561,2.74678921]
[1646087697370,2.04819267,99.784,99.58,0.94]
[1646087697570,4.014,99.735,99.59,5.94]
[1646087697773,0.0001,99.735,99.59,5.0]
[1646087697974,0.0001,99.735,99.6,0.94]
[1646087698176,4.014,99.802,99.591,29.00794534]
[1646087698374,4.014,99.802,99.601,2.74678921]
[1646087698978,4.014,99.802,99.61,0.94]
[1646087699175,4.016,99.816,99.602,70.7313]
[1646087699376,4.016,99.816,99.611,2.74678921]
[1646087699975,32.2,99.813,99.612,13.54179016]
[1646087700175,32.2,99.813,99.613,22.791]
[1646087700378,1.9627783,99.812,99.613,25.53778921]
[1646087700678,1.9627783,99.812,99.66,0.94]
[1646087701086,4.014,99.758,99.661,2.74678921]
[1646087701478,4.014,99.746,99.661,2.74678921]
[1646087701680,4.014,99.746,99.662,13.82865682]
[1646087701880,1.9627783,99.812,99.661,2.74678921]
[1646087702079,4.014,99.833,99.663,2.74678921]
[1646087702579,4.014,99.837,99.664,13.68825682]
[1646087702881,4.014,99.837,99.664,22.13980947]
[1646087703079,4.014,99.765,99.665,24.88659868]
[1646087703481,4.014,99.765,99.67,0.94]
[1646087703678,4.014,99.815,99.69,0.94]
[1646087704081,4.014,99.815,99.691,24.88659868]
[1646087704379,4.014,99.765,99.692,24.88659868]
[1646087704580,2.17785445,99.928,99.693,93.7884]
[1646087704782,24.5207836,99.955,99.694,78.4032]
[1646087704981,24.5207836,99.955,99.694,81.14998921]
[1646087705186,21.47752187,99.952,99.694,118.59399868]
[1646087705381,2.29853889,99.969,99.74,0.94]
[1646087705583,4.013,99.814,99.73,0.94]
[1646087705883,2.29853889,99.969,99.835,25.987]
[1646087706182,21.47752187,99.968,99.835,25.987]
[1646087706382,2.11920049,99.967,99.835,25.987]
[1646087706684,1.5817082,99.973,99.835,25.987]
[1646087707483,14.83473723,99.993,99.835,25.987]
[1646087707683,1.98406927,99.971,99.835,25.987]
[1646087708092,22.75287425,100.01,99.835,25.987]
[1646087708384,37.58761148,100.01,99.835,25.987]
[1646087708787,22.75287425,100.01,99.835,25.987]
[1646087709984,22.75287425,100.01,99.835,25.967]
[1646087710184,1.82513709,100.01,99.835,25.967]